[Event "Titled Tuesday Blitz January 31 Late 2023"]
[White "Risteski, Emil"]
[Black "Necromon"]
[WhiteFideId "15005267"]
[WhiteElo "2366"]
[BlackElo "2420"]
[Result "1-0"]
[Round "03"]
[TimeControl "180+2"]
[Date "2023.01.31"]
[WhiteClock "0:00:37"]
[BlackClock "0:00:17"]

1. Nf3 {[%clk 0:02:51]}  Nf6 {[%clk 0:02:56]} 2. b3 {[%clk 0:02:45]}  g6 {[%clk 0:02:56]} 3. Bb2 {[%clk 0:02:46]}  Bg7 {[%clk 0:02:56]} 4. g3 {[%clk 0:02:45]}  O-O {[%clk 0:02:57]} 5. Bg2 {[%clk 0:02:46]}  d5 {[%clk 0:02:53]} 6. O-O {[%clk 0:02:46]}  Bg4 {[%clk 0:02:51]} 7. c4 {[%clk 0:02:45]}  c6 {[%clk 0:02:51]} 8. d3 {[%clk 0:02:41]}  Nbd7 {[%clk 0:02:47]} 9. Ne5 {[%clk 0:02:14]}  Be6 {[%clk 0:02:39]} 10. Nxd7 {[%clk 0:02:13]}  Qxd7 {[%clk 0:02:38]} 11. Nd2 {[%clk 0:02:09]}  Bh3 {[%clk 0:02:35]} 12. Nf3 {[%clk 0:02:08]}  Bxg2 {[%clk 0:02:35]} 13. Kxg2 {[%clk 0:02:08]}  b5 {[%clk 0:02:22]} 14. cxb5 {[%clk 0:02:06]}  cxb5 {[%clk 0:02:22]} 15. Rc1 {[%clk 0:02:07]}  Rfc8 {[%clk 0:02:21]} 16. Qd2 {[%clk 0:02:07]}  e6 {[%clk 0:02:09]} 17. Rxc8+ {[%clk 0:01:47]}  Rxc8 {[%clk 0:02:08]} 18. Rc1 {[%clk 0:01:48]}  Ne8 {[%clk 0:02:05]} 19. Bxg7 {[%clk 0:01:47]}  Kxg7 {[%clk 0:02:04]} 20. Rxc8 {[%clk 0:01:41]}  Qxc8 {[%clk 0:02:04]} 21. Qa5 {[%clk 0:01:42]}  Qc5 {[%clk 0:01:40]} 22. a4 {[%clk 0:01:39]}  Nd6 {[%clk 0:01:35]} 23. h4 {[%clk 0:01:25]}  Qb6 {[%clk 0:01:26]} 24. Qxb6 {[%clk 0:01:25]}  axb6 {[%clk 0:01:26]} 25. Nd4 {[%clk 0:01:15]}  bxa4 {[%clk 0:01:22]} 26. bxa4 {[%clk 0:01:16]}  e5 {[%clk 0:01:20]} 27. Nc6 {[%clk 0:01:13]}  f6 {[%clk 0:01:16]} 28. Nb4 {[%clk 0:01:11]}  d4 {[%clk 0:01:12]} 29. Nd5 {[%clk 0:01:11]}  Nc8 {[%clk 0:01:12]} 30. e4 {[%clk 0:01:08]}  dxe3 {[%clk 0:01:10]} 31. fxe3 {[%clk 0:01:08]}  Kf7 {[%clk 0:01:09]} 32. Kf3 {[%clk 0:01:05]}  Ke6 {[%clk 0:01:08]} 33. e4 {[%clk 0:01:04]}  f5 {[%clk 0:01:00]} 34. Ne3 {[%clk 0:00:59]}  Nd6 {[%clk 0:00:57]} 35. Nd5 {[%clk 0:00:58]}  Nc8 {[%clk 0:00:58]} 36. Ke3 {[%clk 0:00:54]}  Kd6 {[%clk 0:00:50]} 37. Nf6 {[%clk 0:00:49]}  Kc5 {[%clk 0:00:38]} 38. Nxh7 {[%clk 0:00:49]}  Kb4 {[%clk 0:00:38]} 39. Nf8 {[%clk 0:00:47]}  Ne7 {[%clk 0:00:38]} 40. exf5 {[%clk 0:00:43]}  gxf5 {[%clk 0:00:37]} 41. h5 {[%clk 0:00:43]}  Kxa4 {[%clk 0:00:33]} 42. Nd7 {[%clk 0:00:43]}  b5 {[%clk 0:00:30]} 43. Nxe5 {[%clk 0:00:44]}  b4 {[%clk 0:00:31]} 44. h6 {[%clk 0:00:44]}  Nd5+ {[%clk 0:00:29]} 45. Kd4 {[%clk 0:00:41]}  Nf6 {[%clk 0:00:29]} 46. Nd7 {[%clk 0:00:38]}  Nh7 {[%clk 0:00:25]} 47. Nc5+ {[%clk 0:00:38]}  Ka3 {[%clk 0:00:26]} 48. Kc4 {[%clk 0:00:38]}  Ng5 {[%clk 0:00:24]} 49. d4 {[%clk 0:00:38]}  Ne4 {[%clk 0:00:17]} 50. Nxe4 {[%clk 0:00:36]}  fxe4 {[%clk 0:00:17]} 51. h7 {[%clk 0:00:37]}  b3 {[%clk 0:00:17]} 52. h8=Q {[%clk 0:00:37]} 1-0


[Site "https://www.chess.com"]

[Event "Titled Tuesday Blitz January 31 Late 2023"]
[White "Villarreal, Agustin"]
[Black "Blomqvist, Erik"]
[WhiteFideId "125687"]
[BlackFideId "1709437"]
[WhiteElo "2299"]
[BlackElo "2523"]
[Result "1/2-1/2"]
[Round "03"]
[TimeControl "180+2"]
[Date "2023.01.31"]
[WhiteClock "0:01:41"]
[BlackClock "0:02:23"]

1. d4 {[%clk 0:03:00]}  d5 {[%clk 0:03:00]} 2. Nf3 {[%clk 0:03:00]}  Nf6 {[%clk 0:02:59]} 3. c4 {[%clk 0:03:01]}  dxc4 {[%clk 0:03:00]} 4. Nc3 {[%clk 0:03:01]}  a6 {[%clk 0:02:58]} 5. e4 {[%clk 0:02:59]}  b5 {[%clk 0:02:57]} 6. e5 {[%clk 0:03:00]}  Nd5 {[%clk 0:02:58]} 7. a4 {[%clk 0:03:00]}  e6 {[%clk 0:02:58]} 8. axb5 {[%clk 0:02:58]}  Bb4 {[%clk 0:02:58]} 9. Qc2 {[%clk 0:02:56]}  Nb6 {[%clk 0:02:47]} 10. Qe4 {[%clk 0:02:55]}  Qd5 {[%clk 0:02:42]} 11. Qg4 {[%clk 0:02:55]}  axb5 {[%clk 0:02:38]} 12. Rxa8 {[%clk 0:02:44]}  Qxa8 {[%clk 0:02:39]} 13. Qxg7 {[%clk 0:02:44]}  Bxc3+ {[%clk 0:02:24]} 14. bxc3 {[%clk 0:02:42]}  Qa1 {[%clk 0:02:25]} 15. Qxh8+ {[%clk 0:01:53]}  Kd7 {[%clk 0:02:24]} 16. Kd1 {[%clk 0:01:44]}  Qa4+ {[%clk 0:02:24]} 17. Ke1 {[%clk 0:01:44]}  Qa1 {[%clk 0:02:24]} 18. Kd1 {[%clk 0:01:44]}  Qa4+ {[%clk 0:02:23]} 19. Ke1 {[%clk 0:01:44]}  Qa1 {[%clk 0:02:23]} 20. Kd1 {[%clk 0:01:41]} 1/2-1/2


[Site "https://www.chess.com"]

[Event "Titled Tuesday Blitz January 31 Late 2023"]
[White "Aggelis, Nikolaos"]
[Black "Bon, Michael"]
[WhiteFideId "4213220"]
[BlackFideId "620696"]
[WhiteElo "2270"]
[BlackElo "2394"]
[Result "1/2-1/2"]
[Round "03"]
[TimeControl "180+2"]
[Date "2023.01.31"]
[WhiteClock "0:00:09"]
[BlackClock "0:00:15"]

1. d4 {[%clk 0:02:19]}  d5 {[%clk 0:02:59]} 2. g3 {[%clk 0:02:20]}  Nc6 {[%clk 0:02:57]} 3. Bg2 {[%clk 0:02:19]}  Bf5 {[%clk 0:02:58]} 4. Nf3 {[%clk 0:02:19]}  e6 {[%clk 0:02:58]} 5. O-O {[%clk 0:02:19]}  Nb4 {[%clk 0:02:59]} 6. Na3 {[%clk 0:02:15]}  Be7 {[%clk 0:02:59]} 7. c4 {[%clk 0:02:10]}  c6 {[%clk 0:02:56]} 8. Qb3 {[%clk 0:02:04]}  Nf6 {[%clk 0:02:53]} 9. Nh4 {[%clk 0:02:03]}  Be4 {[%clk 0:02:52]} 10. f3 {[%clk 0:02:03]}  Bg6 {[%clk 0:02:51]} 11. Nxg6 {[%clk 0:02:02]}  hxg6 {[%clk 0:02:52]} 12. Be3 {[%clk 0:01:51]}  a5 {[%clk 0:02:07]} 13. Bf2 {[%clk 0:01:40]}  g5 {[%clk 0:01:59]} 14. Nc2 {[%clk 0:01:40]}  g4 {[%clk 0:01:55]} 15. a3 {[%clk 0:01:37]}  Nxc2 {[%clk 0:01:55]} 16. Qxc2 {[%clk 0:01:37]}  gxf3 {[%clk 0:01:55]} 17. Bxf3 {[%clk 0:01:33]}  Bd6 {[%clk 0:01:48]} 18. c5 {[%clk 0:01:24]}  Bc7 {[%clk 0:01:45]} 19. b4 {[%clk 0:01:24]}  Qe7 {[%clk 0:01:32]} 20. Rab1 {[%clk 0:00:56]}  e5 {[%clk 0:01:26]} 21. e3 {[%clk 0:00:56]}  e4 {[%clk 0:01:24]} 22. Be2 {[%clk 0:00:53]}  Qe6 {[%clk 0:01:20]} 23. Be1 {[%clk 0:00:39]}  axb4 {[%clk 0:01:00]} 24. axb4 {[%clk 0:00:39]}  Ra3 {[%clk 0:00:56]} 25. Rb3 {[%clk 0:00:25]}  Ra1 {[%clk 0:00:47]} 26. Rb1 {[%clk 0:00:25]}  Rxb1 {[%clk 0:00:41]} 27. Qxb1 {[%clk 0:00:26]}  Qh3 {[%clk 0:00:37]} 28. Rf2 {[%clk 0:00:26]}  Bxg3 {[%clk 0:00:35]} 29. Rg2 {[%clk 0:00:25]}  Bxh2+ {[%clk 0:00:34]} 30. Kf1 {[%clk 0:00:24]}  Qxe3 {[%clk 0:00:29]} 31. Bf2 {[%clk 0:00:24]}  Qf4 {[%clk 0:00:27]} 32. Qa1 {[%clk 0:00:22]}  Kd7 {[%clk 0:00:16]} 33. Qa7 {[%clk 0:00:21]}  Kc7 {[%clk 0:00:17]} 34. b5 {[%clk 0:00:21]}  e3 {[%clk 0:00:15]} 35. b6+ {[%clk 0:00:20]}  Kc8 {[%clk 0:00:14]} 36. Qa8+ {[%clk 0:00:20]}  Qb8 {[%clk 0:00:14]} 37. Qxb8+ {[%clk 0:00:21]}  Bxb8 {[%clk 0:00:15]} 38. Bxe3 {[%clk 0:00:21]}  g6 {[%clk 0:00:16]} 39. Bg5 {[%clk 0:00:20]}  Ne4 {[%clk 0:00:15]} 40. Bg4+ {[%clk 0:00:21]}  f5 {[%clk 0:00:15]} 41. Bf3 {[%clk 0:00:20]}  Nxg5 {[%clk 0:00:15]} 42. Rxg5 {[%clk 0:00:21]}  Rh6 {[%clk 0:00:15]} 43. Kg2 {[%clk 0:00:20]}  Kd7 {[%clk 0:00:15]} 44. Kf2 {[%clk 0:00:20]}  Bf4 {[%clk 0:00:15]} 45. Rg1 {[%clk 0:00:19]}  g5 {[%clk 0:00:16]} 46. Ra1 {[%clk 0:00:18]}  g4 {[%clk 0:00:16]} 47. Bg2 {[%clk 0:00:18]}  Bb8 {[%clk 0:00:15]} 48. Ra8 {[%clk 0:00:17]}  Kc8 {[%clk 0:00:15]} 49. Ra1 {[%clk 0:00:17]}  f4 {[%clk 0:00:16]} 50. Re1 {[%clk 0:00:17]}  Kd7 {[%clk 0:00:14]} 51. Ra1 {[%clk 0:00:17]}  f3 {[%clk 0:00:15]} 52. Bf1 {[%clk 0:00:17]}  Rh2+ {[%clk 0:00:15]} 53. Ke3 {[%clk 0:00:16]}  Ke6 {[%clk 0:00:12]} 54. Ra8 {[%clk 0:00:16]}  Bg3 {[%clk 0:00:12]} 55. Rg8 {[%clk 0:00:16]}  Rh4 {[%clk 0:00:11]} 56. Bd3 {[%clk 0:00:14]}  Bh2 {[%clk 0:00:11]} 57. Re8+ {[%clk 0:00:13]}  Kf7 {[%clk 0:00:11]} 58. Rb8 {[%clk 0:00:13]}  Bg1+ {[%clk 0:00:11]} 59. Kf4 {[%clk 0:00:12]}  Bxd4 {[%clk 0:00:11]} 60. Rxb7+ {[%clk 0:00:12]}  Ke6 {[%clk 0:00:11]} 61. Kg3 {[%clk 0:00:11]}  Rh8 {[%clk 0:00:09]} 62. Kxg4 {[%clk 0:00:11]}  f2 {[%clk 0:00:10]} 63. Rc7 {[%clk 0:00:11]}  Bxc5 {[%clk 0:00:09]} 64. Rxc6+ {[%clk 0:00:12]}  Bd6 {[%clk 0:00:10]} 65. b7 {[%clk 0:00:11]}  Rf8 {[%clk 0:00:10]} 66. Rc8 {[%clk 0:00:10]}  f1=Q {[%clk 0:00:07]} 67. Bxf1 {[%clk 0:00:10]}  Rxf1 {[%clk 0:00:08]} 68. b8=Q {[%clk 0:00:08]}  Bxb8 {[%clk 0:00:08]} 69. Rxb8 {[%clk 0:00:09]}  d4 {[%clk 0:00:09]} 70. Kg3 {[%clk 0:00:08]}  Ke5 {[%clk 0:00:09]} 71. Kg2 {[%clk 0:00:08]}  Rf5 {[%clk 0:00:09]} 72. Rb5+ {[%clk 0:00:08]}  Ke4 {[%clk 0:00:09]} 73. Rxf5 {[%clk 0:00:09]}  Kxf5 {[%clk 0:00:09]} 74. Kf3 {[%clk 0:00:09]}  Ke5 {[%clk 0:00:10]} 75. Ke2 {[%clk 0:00:08]}  Ke4 {[%clk 0:00:10]} 76. Kd2 {[%clk 0:00:08]}  d3 {[%clk 0:00:11]} 77. Kd1 {[%clk 0:00:08]}  Kd4 {[%clk 0:00:12]} 78. Kd2 {[%clk 0:00:08]}  Kc4 {[%clk 0:00:12]} 79. Kd1 {[%clk 0:00:09]}  Kc3 {[%clk 0:00:13]} 80. Kc1 {[%clk 0:00:09]}  d2+ {[%clk 0:00:14]} 81. Kd1 {[%clk 0:00:09]}  Kd3 {[%clk 0:00:15]} 1/2-1/2


[Site "https://www.chess.com"]

[Event "Titled Tuesday Blitz January 31 Late 2023"]
[White "Goroshkov, Maksym"]
[Black "Mazurkiewicz, Michal"]
[WhiteFideId "14142716"]
[BlackFideId "1124943"]
[WhiteElo "2287"]
[BlackElo "2145"]
[Result "1-0"]
[Round "03"]
[TimeControl "180+2"]
[Date "2023.01.31"]
[WhiteClock "0:01:00"]
[BlackClock "0:00:02"]

1. e4 {[%clk 0:02:58]}  d6 {[%clk 0:03:00]} 2. d4 {[%clk 0:02:58]}  Nf6 {[%clk 0:03:00]} 3. Bd3 {[%clk 0:02:59]}  c5 {[%clk 0:03:00]} 4. dxc5 {[%clk 0:02:58]}  Qa5+ {[%clk 0:02:59]} 5. Nc3 {[%clk 0:02:55]}  Qxc5 {[%clk 0:03:00]} 6. Be3 {[%clk 0:02:55]}  Qa5 {[%clk 0:03:01]} 7. Nf3 {[%clk 0:02:55]}  Nc6 {[%clk 0:03:00]} 8. O-O {[%clk 0:02:55]}  g6 {[%clk 0:03:00]} 9. a3 {[%clk 0:02:51]}  Bg7 {[%clk 0:02:57]} 10. b4 {[%clk 0:02:51]}  Qc7 {[%clk 0:02:54]} 11. Rc1 {[%clk 0:02:50]}  O-O {[%clk 0:02:53]} 12. Nd5 {[%clk 0:02:49]}  Nxd5 {[%clk 0:02:53]} 13. exd5 {[%clk 0:02:50]}  Ne5 {[%clk 0:02:53]} 14. Nxe5 {[%clk 0:02:50]}  Bxe5 {[%clk 0:02:53]} 15. Bh6 {[%clk 0:02:51]}  Re8 {[%clk 0:02:52]} 16. c4 {[%clk 0:02:51]}  a5 {[%clk 0:02:49]} 17. b5 {[%clk 0:02:50]}  Qc5 {[%clk 0:02:47]} 18. Qb3 {[%clk 0:02:42]}  a4 {[%clk 0:02:46]} 19. Qa2 {[%clk 0:02:40]}  Bd4 {[%clk 0:02:38]} 20. Rce1 {[%clk 0:02:33]}  e5 {[%clk 0:02:27]} 21. Qd2 {[%clk 0:02:18]}  f5 {[%clk 0:02:06]} 22. Qg5 {[%clk 0:01:52]}  e4 {[%clk 0:02:03]} 23. h4 {[%clk 0:01:52]}  Bd7 {[%clk 0:01:47]} 24. Bb1 {[%clk 0:01:38]}  Qc7 {[%clk 0:00:16]} 25. h5 {[%clk 0:01:35]}  Qd8 {[%clk 0:00:16]} 26. hxg6 {[%clk 0:01:34]}  Qxg5 {[%clk 0:00:15]} 27. gxh7+ {[%clk 0:01:35]}  Kxh7 {[%clk 0:00:16]} 28. Bxg5 {[%clk 0:01:35]}  Rac8 {[%clk 0:00:16]} 29. Rc1 {[%clk 0:01:28]}  Bb2 {[%clk 0:00:14]} 30. Rc2 {[%clk 0:01:20]}  Bxa3 {[%clk 0:00:13]} 31. Re1 {[%clk 0:01:16]}  Bc5 {[%clk 0:00:11]} 32. Be3 {[%clk 0:01:16]}  a3 {[%clk 0:00:09]} 33. Bxc5 {[%clk 0:01:15]}  Rxc5 {[%clk 0:00:10]} 34. Re3 {[%clk 0:01:15]}  Rec8 {[%clk 0:00:09]} 35. Rxa3 {[%clk 0:01:07]}  Rxc4 {[%clk 0:00:09]} 36. Ra7 {[%clk 0:01:06]}  Rxc2 {[%clk 0:00:05]} 37. Bxc2 {[%clk 0:01:07]}  Rxc2 {[%clk 0:00:05]} 38. Rxb7 {[%clk 0:01:08]}  Kg6 {[%clk 0:00:05]} 39. Rxd7 {[%clk 0:01:08]}  Kf6 {[%clk 0:00:05]} 40. Rxd6+ {[%clk 0:01:06]}  Ke5 {[%clk 0:00:06]} 41. Rd8 {[%clk 0:01:06]}  Rb2 {[%clk 0:00:06]} 42. d6 {[%clk 0:01:03]}  Rb1+ {[%clk 0:00:02]} 43. Kh2 {[%clk 0:01:02]}  Ke6 {[%clk 0:00:03]} 44. Rb8 {[%clk 0:01:00]}  Kxd6 {[%clk 0:00:03]} 45. b6 {[%clk 0:01:01]}  Kc6 {[%clk 0:00:02]} 46. Kg3 {[%clk 0:01:00]} 1-0


[Site "https://www.chess.com"]

[Event "Titled Tuesday Blitz January 31 Late 2023"]
[White "Can, Melih Kaan"]
[Black "Mladek, Richard"]
[WhiteFideId "6317383"]
[BlackFideId "386588"]
[WhiteElo "2069"]
[BlackElo "2436"]
[Result "0-1"]
[Round "03"]
[TimeControl "180+2"]
[Date "2023.01.31"]
[WhiteClock "0:00:02"]
[BlackClock "0:00:50"]

1. d4 {[%clk 0:03:00]}  Nf6 {[%clk 0:02:58]} 2. c4 {[%clk 0:03:00]}  e6 {[%clk 0:02:58]} 3. Nc3 {[%clk 0:03:01]}  Bb4 {[%clk 0:02:58]} 4. e3 {[%clk 0:03:01]}  O-O {[%clk 0:02:57]} 5. Bd3 {[%clk 0:03:02]}  c5 {[%clk 0:02:57]} 6. Nf3 {[%clk 0:03:02]}  d5 {[%clk 0:02:56]} 7. a3 {[%clk 0:03:03]}  Bxc3+ {[%clk 0:02:48]} 8. bxc3 {[%clk 0:03:04]}  dxc4 {[%clk 0:02:44]} 9. Bxc4 {[%clk 0:03:02]}  Qc7 {[%clk 0:02:44]} 10. Be2 {[%clk 0:02:51]}  Nc6 {[%clk 0:02:39]} 11. O-O {[%clk 0:02:51]}  b6 {[%clk 0:02:36]} 12. a4 {[%clk 0:02:46]}  Bb7 {[%clk 0:02:35]} 13. Ba3 {[%clk 0:02:47]}  Rfd8 {[%clk 0:02:34]} 14. Nd2 {[%clk 0:02:47]}  e5 {[%clk 0:02:34]} 15. dxc5 {[%clk 0:02:43]}  e4 {[%clk 0:02:24]} 16. Qc2 {[%clk 0:02:42]}  Ne5 {[%clk 0:02:23]} 17. cxb6 {[%clk 0:02:34]}  axb6 {[%clk 0:02:23]} 18. f4 {[%clk 0:02:30]}  Neg4 {[%clk 0:02:04]} 19. Bxg4 {[%clk 0:02:20]}  Nxg4 {[%clk 0:02:04]} 20. Rae1 {[%clk 0:02:16]}  Rd3 {[%clk 0:02:02]} 21. Bb4 {[%clk 0:01:21]}  Rad8 {[%clk 0:01:36]} 22. Nb3 {[%clk 0:01:06]}  Nxe3 {[%clk 0:01:33]} 23. Rxe3 {[%clk 0:01:05]}  Rxe3 {[%clk 0:01:34]} 24. f5 {[%clk 0:01:01]}  Ba6 {[%clk 0:01:30]} 25. Rd1 {[%clk 0:00:18]}  Red3 {[%clk 0:01:05]} 26. Re1 {[%clk 0:00:16]}  Qf4 {[%clk 0:01:01]} 27. Qf2 {[%clk 0:00:13]}  Rd1 {[%clk 0:00:51]} 28. Qxf4 {[%clk 0:00:04]}  Rxe1+ {[%clk 0:00:52]} 29. Kf2 {[%clk 0:00:04]}  Rf1+ {[%clk 0:00:52]} 30. Kg3 {[%clk 0:00:02]}  Rd3+ {[%clk 0:00:52]} 31. Kg4 {[%clk 0:00:02]}  h5+ {[%clk 0:00:51]} 32. Kg5 {[%clk 0:00:02]}  f6+ {[%clk 0:00:50]} 33. Kg6 {[%clk 0:00:02]}  Rxf4 {[%clk 0:00:50]} 0-1


[Site "https://www.chess.com"]

[Event "Titled Tuesday Blitz January 31 Late 2023"]
[White "Pesotskiy, Mikhail"]
[Black "Korchmar, Vasiliy"]
[WhiteFideId "34164453"]
[BlackFideId "24131750"]
[WhiteElo "2153"]
[BlackElo "2438"]
[Result "1-0"]
[Round "03"]
[TimeControl "180+2"]
[Date "2023.01.31"]
[WhiteClock "0:00:14"]
[BlackClock "0:00:02"]

1. d4 {[%clk 0:03:00]}  d5 {[%clk 0:02:59]} 2. c4 {[%clk 0:03:00]}  c6 {[%clk 0:03:00]} 3. Nf3 {[%clk 0:02:59]}  Nf6 {[%clk 0:03:00]} 4. Nbd2 {[%clk 0:02:58]}  e6 {[%clk 0:02:52]} 5. e3 {[%clk 0:02:56]}  Nbd7 {[%clk 0:02:49]} 6. b3 {[%clk 0:02:56]}  Bb4 {[%clk 0:02:48]} 7. Bb2 {[%clk 0:02:49]}  Ne4 {[%clk 0:02:48]} 8. Qc2 {[%clk 0:02:45]}  f5 {[%clk 0:02:48]} 9. a3 {[%clk 0:02:39]}  Bd6 {[%clk 0:02:48]} 10. Ne5 {[%clk 0:02:38]}  Bxe5 {[%clk 0:02:24]} 11. dxe5 {[%clk 0:02:39]}  Qg5 {[%clk 0:02:15]} 12. g3 {[%clk 0:02:24]}  O-O {[%clk 0:02:08]} 13. f4 {[%clk 0:01:59]}  Qh6 {[%clk 0:02:03]} 14. Nxe4 {[%clk 0:01:55]}  fxe4 {[%clk 0:01:53]} 15. O-O-O {[%clk 0:01:55]}  b6 {[%clk 0:01:33]} 16. Kb1 {[%clk 0:01:01]}  Bb7 {[%clk 0:01:33]} 17. g4 {[%clk 0:01:01]}  Qh4 {[%clk 0:01:32]} 18. Rg1 {[%clk 0:01:00]}  Qe7 {[%clk 0:01:30]} 19. f5 {[%clk 0:00:53]}  exf5 {[%clk 0:01:06]} 20. e6 {[%clk 0:00:54]}  Nf6 {[%clk 0:00:38]} 21. gxf5 {[%clk 0:00:52]}  Kh8 {[%clk 0:00:30]} 22. Be2 {[%clk 0:00:49]}  Rad8 {[%clk 0:00:29]} 23. cxd5 {[%clk 0:00:37]}  cxd5 {[%clk 0:00:25]} 24. Rg3 {[%clk 0:00:33]}  Rg8 {[%clk 0:00:23]} 25. Rdg1 {[%clk 0:00:32]}  Rc8 {[%clk 0:00:19]} 26. Qd2 {[%clk 0:00:32]}  Rcf8 {[%clk 0:00:05]} 27. Qd4 {[%clk 0:00:31]}  Bc6 {[%clk 0:00:05]} 28. h4 {[%clk 0:00:30]}  Be8 {[%clk 0:00:05]} 29. Rg5 {[%clk 0:00:29]}  h6 {[%clk 0:00:04]} 30. R5g3 {[%clk 0:00:29]}  Bh5 {[%clk 0:00:04]} 31. Bxh5 {[%clk 0:00:29]}  Nxh5 {[%clk 0:00:04]} 32. Rg6 {[%clk 0:00:30]}  Kh7 {[%clk 0:00:03]} 33. Qxd5 {[%clk 0:00:20]}  Rd8 {[%clk 0:00:03]} 34. Qxe4 {[%clk 0:00:20]}  Rd2 {[%clk 0:00:04]} 35. f6 {[%clk 0:00:19]}  Rxb2+ {[%clk 0:00:01]} 36. Kxb2 {[%clk 0:00:19]}  Nxf6 {[%clk 0:00:01]} 37. Rxf6+ {[%clk 0:00:19]}  Kh8 {[%clk 0:00:02]} 38. Rf7 {[%clk 0:00:19]}  Qd6 {[%clk 0:00:02]} 39. Rg2 {[%clk 0:00:19]}  Qc5 {[%clk 0:00:01]} 40. e7 {[%clk 0:00:16]}  Qb5 {[%clk 0:00:02]} 41. a4 {[%clk 0:00:16]}  Qd7 {[%clk 0:00:02]} 42. Qe5 {[%clk 0:00:14]} 1-0


[Site "https://www.chess.com"]

[Event "Titled Tuesday Blitz January 31 Late 2023"]
[White "Atanasov, Anthony"]
[Black "Kostiukov, Alexandr"]
[WhiteFideId "2623897"]
[BlackFideId "14108100"]
[WhiteElo "2368"]
[BlackElo "2271"]
[Result "1-0"]
[Round "03"]
[TimeControl "180+2"]
[Date "2023.01.31"]
[WhiteClock "0:00:30"]
[BlackClock "0:00:08"]

1. e4 {[%clk 0:03:00]}  c5 {[%clk 0:02:54]} 2. Nf3 {[%clk 0:03:00]}  g6 {[%clk 0:02:54]} 3. d4 {[%clk 0:03:00]}  cxd4 {[%clk 0:02:55]} 4. Qxd4 {[%clk 0:03:01]}  Nf6 {[%clk 0:02:54]} 5. Nc3 {[%clk 0:03:02]}  Nc6 {[%clk 0:02:54]} 6. Qa4 {[%clk 0:03:03]}  d6 {[%clk 0:02:55]} 7. e5 {[%clk 0:03:03]}  dxe5 {[%clk 0:02:54]} 8. Nxe5 {[%clk 0:03:04]}  Bg7 {[%clk 0:02:54]} 9. Nxc6 {[%clk 0:02:59]}  bxc6 {[%clk 0:02:55]} 10. Qxc6+ {[%clk 0:02:59]}  Bd7 {[%clk 0:02:55]} 11. Qf3 {[%clk 0:03:00]}  O-O {[%clk 0:02:54]} 12. Bd3 {[%clk 0:02:55]}  Qb6 {[%clk 0:02:52]} 13. O-O {[%clk 0:02:53]}  Bc6 {[%clk 0:02:52]} 14. Qe2 {[%clk 0:02:50]}  Qb7 {[%clk 0:02:36]} 15. f3 {[%clk 0:02:38]}  Rfd8 {[%clk 0:02:22]} 16. Rb1 {[%clk 0:02:27]}  Nd7 {[%clk 0:01:52]} 17. Bd2 {[%clk 0:02:08]}  Nc5 {[%clk 0:01:50]} 18. Bc4 {[%clk 0:02:04]}  a5 {[%clk 0:01:31]} 19. Be3 {[%clk 0:02:00]}  Ne6 {[%clk 0:01:23]} 20. Bxe6 {[%clk 0:01:56]}  fxe6 {[%clk 0:01:24]} 21. Bc5 {[%clk 0:01:51]}  Bd5 {[%clk 0:01:00]} 22. Rfe1 {[%clk 0:01:36]}  Qc6 {[%clk 0:00:55]} 23. Bxe7 {[%clk 0:01:30]}  Rdb8 {[%clk 0:00:40]} 24. Nxd5 {[%clk 0:01:29]}  exd5 {[%clk 0:00:39]} 25. c3 {[%clk 0:01:27]}  Re8 {[%clk 0:00:34]} 26. Qf2 {[%clk 0:01:20]}  Qc4 {[%clk 0:00:24]} 27. a3 {[%clk 0:01:11]}  d4 {[%clk 0:00:21]} 28. Re4 {[%clk 0:01:02]}  Qc7 {[%clk 0:00:16]} 29. Rbe1 {[%clk 0:00:50]}  dxc3 {[%clk 0:00:14]} 30. bxc3 {[%clk 0:00:51]}  Qxc3 {[%clk 0:00:09]} 31. Qa2+ {[%clk 0:00:52]}  Kh8 {[%clk 0:00:08]} 32. Bb4 {[%clk 0:00:44]}  Qc6 {[%clk 0:00:07]} 33. Rxe8+ {[%clk 0:00:30]}  Rxe8 {[%clk 0:00:08]} 34. Bxa5 {[%clk 0:00:30]} 1-0


[Site "https://www.chess.com"]

[Event "Titled Tuesday Blitz January 31 Late 2023"]
[White "Hoffmann, Asa"]
[Black "Diaz Perez, Michel Alejandro"]
[WhiteFideId "2001470"]
[BlackFideId "3517179"]
[WhiteElo "2185"]
[BlackElo "2414"]
[Result "0-1"]
[Round "03"]
[TimeControl "180+2"]
[Date "2023.01.31"]
[WhiteClock "0:01:10"]
[BlackClock "0:01:27"]

1. d4 {[%clk 0:02:59]}  Nf6 {[%clk 0:02:59]} 2. Bg5 {[%clk 0:02:56]}  Ne4 {[%clk 0:02:57]} 3. Bf4 {[%clk 0:02:56]}  c5 {[%clk 0:02:57]} 4. f3 {[%clk 0:02:55]}  Nf6 {[%clk 0:02:55]} 5. dxc5 {[%clk 0:02:55]}  Qa5+ {[%clk 0:02:55]} 6. Nc3 {[%clk 0:02:55]}  Qxc5 {[%clk 0:02:55]} 7. e4 {[%clk 0:02:55]}  a6 {[%clk 0:02:54]} 8. Qd2 {[%clk 0:02:55]}  d6 {[%clk 0:02:53]} 9. g4 {[%clk 0:02:53]}  Be6 {[%clk 0:02:50]} 10. Be3 {[%clk 0:02:47]}  Qa5 {[%clk 0:02:46]} 11. Nge2 {[%clk 0:02:45]}  Nc6 {[%clk 0:02:44]} 12. Nd4 {[%clk 0:02:41]}  Nxd4 {[%clk 0:02:41]} 13. Bxd4 {[%clk 0:02:41]}  b5 {[%clk 0:02:34]} 14. a3 {[%clk 0:02:39]}  Rc8 {[%clk 0:02:33]} 15. Be2 {[%clk 0:02:35]}  h5 {[%clk 0:02:14]} 16. g5 {[%clk 0:02:31]}  Nd7 {[%clk 0:02:12]} 17. h4 {[%clk 0:02:30]}  Ne5 {[%clk 0:02:10]} 18. Bxe5 {[%clk 0:02:27]}  dxe5 {[%clk 0:02:11]} 19. Rd1 {[%clk 0:02:25]}  Qb6 {[%clk 0:02:03]} 20. Nd5 {[%clk 0:02:20]}  Bxd5 {[%clk 0:02:02]} 21. Qxd5 {[%clk 0:02:20]}  Qc7 {[%clk 0:01:59]} 22. c3 {[%clk 0:02:18]}  e6 {[%clk 0:01:59]} 23. Qb3 {[%clk 0:02:09]}  Bc5 {[%clk 0:01:59]} 24. a4 {[%clk 0:02:09]}  O-O {[%clk 0:01:51]} 25. axb5 {[%clk 0:02:08]}  axb5 {[%clk 0:01:51]} 26. Kf1 {[%clk 0:02:04]}  g6 {[%clk 0:01:50]} 27. Kg2 {[%clk 0:02:03]}  Rb8 {[%clk 0:01:47]} 28. Bxb5 {[%clk 0:01:56]}  Ba7 {[%clk 0:01:43]} 29. c4 {[%clk 0:01:55]}  Qc5 {[%clk 0:01:42]} 30. Rhf1 {[%clk 0:01:54]}  Rfd8 {[%clk 0:01:39]} 31. Rd3 {[%clk 0:01:40]}  Bb6 {[%clk 0:01:36]} 32. Qd1 {[%clk 0:01:38]}  Rxd3 {[%clk 0:01:34]} 33. Qxd3 {[%clk 0:01:38]}  Rd8 {[%clk 0:01:35]} 34. Qc3 {[%clk 0:01:33]}  Qe3 {[%clk 0:01:30]} 35. Qxe3 {[%clk 0:01:25]}  Bxe3 {[%clk 0:01:31]} 36. Rb1 {[%clk 0:01:12]}  Rd2+ {[%clk 0:01:30]} 37. Kg3 {[%clk 0:01:10]}  Bf4+ {[%clk 0:01:28]} 38. Kh3 {[%clk 0:01:10]}  Rh2# {[%clk 0:01:27]} 0-1


[Site "https://www.chess.com"]